Department Family,Entity,Date of Payment,Expense Type,Expense Area,Supplier,Voluntary & Community Sector,SME Class,Sole Trader,Transaction number,Purchasing Item Text,Postal Code,Amount in Sterling,Grant?
"Housing, Communities & Local Government",PINS,01/02/2022,Payroll Services,Human Resources,CGI IT UK LIMITED,,Large,,5106279405,Payroll Service 2021/21,CF31 9AP,436.26,
"Housing, Communities & Local Government",PINS,01/02/2022,Agency Staff,"Finance, Commercial & Business Support",REED SPECIALIST RECRUITMENT LTD,,Large,,5106279455,AA Storekeeper ,SW20 0BA,549.23,
"Housing, Communities & Local Government",PINS,01/02/2022,Agency Staff,Resourcing & Process,HAYS SPECIALIST RECRUITMENT LTD,,Large,,5106279275,Agency Support Staff,NW1 2AF,720.00,
"Housing, Communities & Local Government",PINS,01/02/2022,Agency Staff,"Finance, Commercial & Business Support",REED SPECIALIST RECRUITMENT LTD,,Large,,5106279453,Commercial EO ,SW20 0BA,878.68,
"Housing, Communities & Local Government",PINS,01/02/2022,Agency Staff,"Finance, Commercial & Business Support",REED SPECIALIST RECRUITMENT LTD,,Large,,5106279454,Commercial EO ,SW20 0BA,878.68,
"Housing, Communities & Local Government",PINS,01/02/2022,Agency Staff,Director of Strategy,REED SPECIALIST RECRUITMENT LTD,,Large,,5106279446,PA Role ,SW20 0BA,"1,635.70",
"Housing, Communities & Local Government",PINS,01/02/2022,Agency Staff,Human Resources,REED SPECIALIST RECRUITMENT LTD,,Large,,5106279417,HR Ops Team Leader,SW20 0BA,"1,708.99",
"Housing, Communities & Local Government",PINS,01/02/2022,NSI Fees & Expenses,LKD NSI,GDPR REDACTION,,Micro,,5106279458,NSI Fees & Expenses,PO20 0HX,"1,764.96",
"Housing, Communities & Local Government",PINS,01/02/2022,Steady State Service Provision,Human Resources,QCG Ltd,,Micro,,5106279441,Regulators Survey 2021,SE11 5DP,"1,980.00",
"Housing, Communities & Local Government",PINS,01/02/2022,Specialist Technical Support,Digital Services,REED SPECIALIST RECRUITMENT LTD,,Large,,5106279414,Information Security Manager,SW20 0BA,"2,772.00",
"Housing, Communities & Local Government",PINS,01/02/2022,Specialist Technical Support,Digital Services,REED SPECIALIST RECRUITMENT LTD,,Large,,5106279424,PowerBI Engineer,SW20 0BA,"2,786.40",
"Housing, Communities & Local Government",PINS,01/02/2022,Specialist Technical Support,Digital Services,REED SPECIALIST RECRUITMENT LTD,,Large,,5106279426,PowerBI Engineer,SW20 0BA,"2,786.40",
"Housing, Communities & Local Government",PINS,01/02/2022,Specialist Technical Support,Digital Services,HAYS SPECIALIST RECRUITMENT LTD,,Large,,5106279402,O365 specialist ,NW1 2AF,"3,121.86",
"Housing, Communities & Local Government",PINS,01/02/2022,Specialist Technical Support,Digital Services,REED SPECIALIST RECRUITMENT LTD,,Large,,5106279423,Full Stack Software Developer,SW20 0BA,"3,386.40",
"Housing, Communities & Local Government",PINS,01/02/2022,Specialist Technical Support,Change Portfolio Workstreams,REED SPECIALIST RECRUITMENT LTD,,Large,,5106279418,SAP Data Engineer,SW20 0BA,"3,795.00",
"Housing, Communities & Local Government",PINS,02/02/2022,Translations,LKD Wales,TROSOL CYFYNGEDIG,,Small,,5106279467,Translation services,CF11 9LJ,400.00,
"Housing, Communities & Local Government",PINS,02/02/2022,DEV Exp (AUC) Intngble Software Acq Cost,Digital Services,HAYS SPECIALIST RECRUITMENT LTD,,Large,,5106279476,Project support Officer,NW1 2AF,533.61,
"Housing, Communities & Local Government",PINS,02/02/2022,Translations,LKD Wales,TROSOL CYFYNGEDIG,,Small,,5106279465,Translation services,CF11 9LJ,800.00,
"Housing, Communities & Local Government",PINS,02/02/2022,Agency Staff,Digital Services,REED SPECIALIST RECRUITMENT LTD,,Large,,5106279422,Contract Support Officer,SW20 0BA,847.60,
"Housing, Communities & Local Government",PINS,02/02/2022,NSI Fees & Expenses,Inspectors Costs,GDPR REDACTION,,Data Not Provided,,5106279485,NSI Fees & Expenses,IP10 0ET,"1,125.00",
"Housing, Communities & Local Government",PINS,02/02/2022,Translations,LKD Wales,TROSOL CYFYNGEDIG,,Small,,5106279462,Translation services,CF11 9LJ,"1,300.00",
"Housing, Communities & Local Government",PINS,02/02/2022,Specialist Technical Support,Operations Group 2,HAYS SPECIALIST RECRUITMENT LTD,,Large,,5106279474,Virtual Events Technical Support,NW1 2AF,"1,498.86",
"Housing, Communities & Local Government",PINS,02/02/2022,Translations,LKD Wales,TROSOL CYFYNGEDIG,,Small,,5106279468,Translation services,CF11 9LJ,"1,774.74",
"Housing, Communities & Local Government",PINS,02/02/2022,Specialist Technical Support,Digital Services,HAYS SPECIALIST RECRUITMENT LTD,,Large,,5106279475,Digital Trainer,NW1 2AF,"1,798.14",
"Housing, Communities & Local Government",PINS,02/02/2022,NSI Fees & Expenses,Inspectors Costs,GDPR REDACTION,,Data Not Provided,,5106279495,NSI Fees & Expenses,DE72 3QP,"1,848.66",
"Housing, Communities & Local Government",PINS,02/02/2022,Translations,LKD Wales,TROSOL CYFYNGEDIG,,Small,,5106279466,Translation services,CF11 9LJ,"2,000.00",
"Housing, Communities & Local Government",PINS,02/02/2022,NSI Fees & Expenses,Inspectors Costs,GDPR REDACTION,,Small,,5106279498,NSI Fees & Expenses,TQ13 9TZ,"2,213.88",
"Housing, Communities & Local Government",PINS,02/02/2022,Specialist Technical Support,Change Portfolio Workstreams,HAYS SPECIALIST RECRUITMENT LTD,,Large,,5106279471,Business Analyst,NW1 2AF,"2,930.83",
"Housing, Communities & Local Government",PINS,02/02/2022,NSI Fees & Expenses,Inspectors Costs,GDPR REDACTION,,Micro,,5106279484,NSI Fees & Expenses,BA4 9DN,"3,496.98",
"Housing, Communities & Local Government",PINS,02/02/2022,Specialist Technical Support,Digital Services,HAYS SPECIALIST RECRUITMENT LTD,,Large,,5106279473,Interaction Designer,NW1 2AF,"3,735.42",
"Housing, Communities & Local Government",PINS,02/02/2022,Specialist Technical Support,Digital Services,HAYS SPECIALIST RECRUITMENT LTD,,Large,,5106279469,Information Security Architect,NW1 2AF,"5,389.02",
"Housing, Communities & Local Government",PINS,03/02/2022,NSI Fees & Expenses,Inspectors Costs,GDPR REDACTION,,Micro,,5106279262,NSI Fees & Expenses,CH7 5NL,"-3,450.00",
"Housing, Communities & Local Government",PINS,03/02/2022,Recruitment/Procurement Advertising,Human Resources,BAME in Property Ltd,,Small,,5106279537,Recruitment Services,N1 7GU,350.00,
"Housing, Communities & Local Government",PINS,03/02/2022,Office machinery consumables,LKD Finance and Commercial,X M A LIMITED,,Data Not Provided,,5106279511,IT consumables 2021-2022,NG11 7EP,988.32,
"Housing, Communities & Local Government",PINS,03/02/2022,Web Services,Digital Services,ZSAH LTD,,Small,,5106279539,Hosting services,SW7 3HE,"1,392.25",
"Housing, Communities & Local Government",PINS,03/02/2022,Online Database Information Retrieval,Innovation & Improvement,HAYMARKET MEDIA GROUP LIMITED,,Data Not Provided,,5106279517,Mineral Planning & Waste Subscription,TW1 3SP,"1,650.00",
"Housing, Communities & Local Government",PINS,03/02/2022,Specialist Technical Support,Digital Services,HAYS SPECIALIST RECRUITMENT LTD,,Large,,5106279504,Data Migration BA,NW1 2AF,"2,617.49",
"Housing, Communities & Local Government",PINS,03/02/2022,NSI Fees & Expenses,Inspectors Costs,GDPR REDACTION,,Small,,5106279535,NSI Fees & Expenses,RG41 3HL,"3,116.76",
"Housing, Communities & Local Government",PINS,03/02/2022,Specialist Technical Support,Digital Services,HAYS SPECIALIST RECRUITMENT LTD,,Large,,5106279518,Data Migration BA,NW1 2AF,"3,271.86",
"Housing, Communities & Local Government",PINS,03/02/2022,NSI Fees & Expenses,Inspectors Costs,STAR PLANNING & DEVELOPMENT LTD,,Micro,,5106279525,NSI Fees & Expenses,B14 6BX,"3,473.09",
"Housing, Communities & Local Government",PINS,03/02/2022,Specialist Technical Support,Digital Services,HAYS SPECIALIST RECRUITMENT LTD,,Large,,5106279505,Data Engineer,NW1 2AF,"3,585.42",
"Housing, Communities & Local Government",PINS,03/02/2022,Payroll Services,Human Resources,CGI IT UK LIMITED,,Large,,5106279514,Payroll Service 2021/21,CF31 9AP,"3,920.99",
"Housing, Communities & Local Government",PINS,04/02/2022,Agency Staff,Operations Group 1,REED SPECIALIST RECRUITMENT LTD,,Large,,5106279415,Agency Support Staff,SW20 0BA,507.96,
"Housing, Communities & Local Government",PINS,04/02/2022,Travel and Subsistence Account,Inspectors Costs,CORPORATE TRAVEL MANAGEMENT(NORTH)L,,Small,,5106279572,Air Travel,BD1 5HQ,532.49,
"Housing, Communities & Local Government",PINS,04/02/2022,Agency Staff,Resourcing & Process,HAYS SPECIALIST RECRUITMENT LTD,,Large,,5106279556,Agency Support Staff,NW1 2AF,720.00,
"Housing, Communities & Local Government",PINS,04/02/2022,Agency Staff,Human Resources,HAYS SPECIALIST RECRUITMENT LTD,,Large,,5106279541,HR Ops Admin Officer,NW1 2AF,899.64,
"Housing, Communities & Local Government",PINS,04/02/2022,Specialist Technical Support,Planning Reform,HAYS SPECIALIST RECRUITMENT LTD,,Large,,5106279563,Technical Business Analyst,NW1 2AF,"2,674.68",
"Housing, Communities & Local Government",PINS,04/02/2022,Specialist Technical Support,Digital Services,HAYS SPECIALIST RECRUITMENT LTD,,Large,,5106279557,O365 specialist ,NW1 2AF,"3,121.86",
"Housing, Communities & Local Government",PINS,04/02/2022,Agency Staff,Digital Services,HAYS SPECIALIST RECRUITMENT LTD,,Large,,5106279558,Supplier & Contracts Officer ,NW1 2AF,"3,266.51",
"Housing, Communities & Local Government",PINS,04/02/2022,Agency Staff,Change Portfolio Workstreams,HAYS SPECIALIST RECRUITMENT LTD,,Large,,5106279540,Agency Support Staff,NW1 2AF,"3,621.06",
"Housing, Communities & Local Government",PINS,04/02/2022,Specialist Technical Support,CP Balance,MICHAEL PAGE INTN'TL RECRUITMENT LT,,Large,,5106279451,Recruitment Services,SL1 1QP,"3,721.57",
"Housing, Communities & Local Government",PINS,04/02/2022,Vehicle hire,LKD Inspector Costs,ENTERPRISE RENT-A-CAR,,Large,,5106279568,Car Hire 2021-2022,TW20 9FB,"11,074.09",
"Housing, Communities & Local Government",PINS,04/02/2022,Travel and Subsistence Account,Inspectors Costs,CORPORATE TRAVEL MANAGEMENT(NORTH)L,,Small,,5106279572,Hotel accommodation,BD1 5HQ,"11,854.92",
"Housing, Communities & Local Government",PINS,04/02/2022,Travel and Subsistence Account,Inspectors Costs,CORPORATE TRAVEL MANAGEMENT(NORTH)L,,Small,,5106279572,Rail Travel,BD1 5HQ,"12,543.15",
"Housing, Communities & Local Government",PINS,04/02/2022,DEV Exp (AUC) Intngble Software Acq Cost,Digital Services,DIFRENT LTD,,Medium,,5106279571,PM/PA - Appeals,E1 6JE,"15,200.00",
"Housing, Communities & Local Government",PINS,04/02/2022,DEV Exp (AUC) Intngble Software Acq Cost,Digital Services,DIFRENT LTD,,Medium,,5106279571,PM/PA - Applications,E1 6JE,"15,200.00",
"Housing, Communities & Local Government",PINS,04/02/2022,Specialist Technical Support,Innovation,Digi2al Limited???,,Medium,,5106279578,Knowledge Innovation Project Alpha,BN3 2FN,"66,780.00",
"Housing, Communities & Local Government",PINS,07/02/2022,Agency Staff,Operations Group 1,REED SPECIALIST RECRUITMENT LTD,,Large,,5106279654,Agency Support Staff,SW20 0BA,507.96,
"Housing, Communities & Local Government",PINS,07/02/2022,Agency Staff,Operations Group 1,REED SPECIALIST RECRUITMENT LTD,,Large,,5106279166,Agency Support Staff,SW20 0BA,626.48,
"Housing, Communities & Local Government",PINS,07/02/2022,Agency Staff,"Finance, Commercial & Business Support",REED SPECIALIST RECRUITMENT LTD,,Large,,5106279416,Agency Support Staff,SW20 0BA,632.08,
"Housing, Communities & Local Government",PINS,07/02/2022,Agency Staff,Operations Group 1,REED SPECIALIST RECRUITMENT LTD,,Large,,5106279158,Agency Support Staff,SW20 0BA,647.65,
"Housing, Communities & Local Government",PINS,07/02/2022,Agency Staff,Operations Group 1,REED SPECIALIST RECRUITMENT LTD,,Large,,5106279431,Agency Support Staff,SW20 0BA,673.04,
"Housing, Communities & Local Government",PINS,07/02/2022,Agency Staff,Operations Group 2,HAYS SPECIALIST RECRUITMENT LTD,,Large,,5106279640,Casework Officer ,NW1 2AF,720.00,
"Housing, Communities & Local Government",PINS,07/02/2022,Specialist Technical Support,Digital Services,HAYS SPECIALIST RECRUITMENT LTD,,Large,,5106279608,ODT Apps Product Manager,NW1 2AF,"4,185.42",
"Housing, Communities & Local Government",PINS,07/02/2022,Specialist Technical Support,Digital Services,HAYS SPECIALIST RECRUITMENT LTD,,Large,,5106279612,ODT Apps Product Manager,NW1 2AF,"4,185.42",
"Housing, Communities & Local Government",PINS,07/02/2022,Mobile phone costs,Digital Services,DAISY CORPORATE SERVICES TRADING LT,,Large,,5106279682,Mobiles,BB9 5SR,"4,206.84",
"Housing, Communities & Local Government",PINS,07/02/2022,Steady State Service Provision,Human Resources,Home Office,,Data Not Provided,,5106279675,CSIS investigations 01/04/21 - 30/09/21,NP20 9BB,"7,933.20",
"Housing, Communities & Local Government",PINS,07/02/2022,Internal Audit,"Finance, Commercial & Business Support",H M TREASURY,,Public Bodies,,5106279671,Internal audit fees QRT 1 & 2 2021-22,NR7 0HS,"12,898.75",
"Housing, Communities & Local Government",PINS,07/02/2022,Specialist Technical Support,Project Speed,Digi2al Limited???,,Medium,,5106279512,Discovery - end to end Digital DCOs,BN3 2FN,"85,671.00",
"Housing, Communities & Local Government",PINS,08/02/2022,Agency Staff,"Finance, Commercial & Business Support",REED SPECIALIST RECRUITMENT LTD,,Large,,5106279683,AA Storekeeper ,SW20 0BA,549.23,
"Housing, Communities & Local Government",PINS,08/02/2022,Agency Staff,Operations Group 1,REED SPECIALIST RECRUITMENT LTD,,Large,,5106279716,Agency Support Staff,SW20 0BA,626.48,
"Housing, Communities & Local Government",PINS,08/02/2022,Agency Staff,Operations Group 1,REED SPECIALIST RECRUITMENT LTD,,Large,,5106279715,Agency Support Staff,SW20 0BA,668.82,
"Housing, Communities & Local Government",PINS,08/02/2022,Agency Staff,Operations Group 1,HAYS SPECIALIST RECRUITMENT LTD,,Large,,5106279713,Agency Support Staff,NW1 2AF,720.00,
"Housing, Communities & Local Government",PINS,08/02/2022,Mobile phone costs,Digital Services,DAISY CORPORATE SERVICES TRADING LT,,Large,,5106279726,MiFi Devices,BB9 5SR,786.00,
"Housing, Communities & Local Government",PINS,08/02/2022,Agency Staff,Human Resources,REED SPECIALIST RECRUITMENT LTD,,Large,,5106279699,HR Ops Team Leader,SW20 0BA,"1,639.44",
"Housing, Communities & Local Government",PINS,08/02/2022,DEV Exp (AUC) Intngble Software Acq Cost,Digital Services,Meister.works ltd,,Micro,,5106279734,Research Services,SW1Y 4LB,"1,780.00",
"Housing, Communities & Local Government",PINS,08/02/2022,Mobile phone costs,Digital Services,ORBIS PROTECT,,Large,,5106279546,Lone Worker Protection Services,UB8 1QG,"2,298.96",
"Housing, Communities & Local Government",PINS,08/02/2022,Specialist Technical Support,Change Portfolio Workstreams,REED SPECIALIST RECRUITMENT LTD,,Large,,5106279722,SAP Data Engineer,SW20 0BA,"3,795.00",
"Housing, Communities & Local Government",PINS,08/02/2022,Mobile phone costs,Digital Services,DAISY CORPORATE SERVICES TRADING LT,,Large,,5106279725,Mobiles,BB9 5SR,"4,212.32",
"Housing, Communities & Local Government",PINS,08/02/2022,Specialist Technical Support,Digital Services,STANCE GLOBAL LTD,,Micro,,5106279735,CTO as a Service Digital,EC1A 2BN,"7,200.00",
"Housing, Communities & Local Government",PINS,08/02/2022,Training,Human Resources,BEAMANS MANAGEMENT CONSULTANTS LTD,,Small,,5106279698,Jegs Training,WD18 1RH,"33,184.06",
"Housing, Communities & Local Government",PINS,08/02/2022,Specialist Technical Support,Digital Operating Model,STANCE GLOBAL LTD,,Micro,,5106279735,CTO as a Service Change Portfolio,EC1A 2BN,"40,200.00",
"Housing, Communities & Local Government",PINS,09/02/2022,Advertising,LKD Environment,TMP (UK) LIMITED,,Large,,5106279777,Statutory Advertising,W1T 7RQ,393.07,
"Housing, Communities & Local Government",PINS,09/02/2022,Agency Staff,Digital Services,REED SPECIALIST RECRUITMENT LTD,,Large,,5106279695,Contract Support Officer,SW20 0BA,847.60,
"Housing, Communities & Local Government",PINS,09/02/2022,Agency Staff,"Finance, Commercial & Business Support",HAYS SPECIALIST RECRUITMENT LTD,,Large,,5106279706,Agency Support Staff,NW1 2AF,"2,399.40",
"Housing, Communities & Local Government",PINS,09/02/2022,Specialist Technical Support,Digital Services,REED SPECIALIST RECRUITMENT LTD,,Large,,5106279696,Information Security Manager,SW20 0BA,"3,118.50",
"Housing, Communities & Local Government",PINS,09/02/2022,NSI Fees & Expenses,Inspectors Costs,GDPR REDACTION,,Small,,5106279719,NSI Fees & Expenses,E1 1LQ,"3,303.28",
"Housing, Communities & Local Government",PINS,09/02/2022,Specialist Technical Support,Digital Services,REED SPECIALIST RECRUITMENT LTD,,Large,,5106279694,Full Stack Software Developer,SW20 0BA,"3,386.40",
"Housing, Communities & Local Government",PINS,09/02/2022,NSI Fees & Expenses,LKD NSI,RCA REGENERATION LTD,,Small,,5106279784,NSI Fees & Expenses,WR9 0QE,"4,086.24",
"Housing, Communities & Local Government",PINS,09/02/2022,Specialist Technical Support,Change Portfolio Workstreams,METHODS BUSINESS AND DIGITAL TECH,,Medium,,5106279775,Corporate Systems Delivery Manager,EC1N 8TS,"16,482.00",
"Housing, Communities & Local Government",PINS,10/02/2022,Agency Staff,Operations Group 1,HAYS SPECIALIST RECRUITMENT LTD,,Large,,5106279798,Agency Support Staff,NW1 2AF,720.00,
"Housing, Communities & Local Government",PINS,10/02/2022,Specialist Technical Support,Digital Services,HAYS SPECIALIST RECRUITMENT LTD,,Large,,5106279797,Digital Trainer,NW1 2AF,899.08,
"Housing, Communities & Local Government",PINS,10/02/2022,Web Services,Digital Services,ORDNANCE SURVEY,,Public Bodies,,5106279841,Ordnance Survey Rebate,SO16 0AS,"1,100.00",
"Housing, Communities & Local Government",PINS,10/02/2022,Specialist Technical Support,Operations Group 2,HAYS SPECIALIST RECRUITMENT LTD,,Large,,5106279802,Virtual Events Technical Support,NW1 2AF,"1,498.86",
"Housing, Communities & Local Government",PINS,10/02/2022,Specialist Technical Support,Digital Services,HAYS SPECIALIST RECRUITMENT LTD,,Large,,5106279816,ODT Apps Product Manager,NW1 2AF,"1,674.17",
"Housing, Communities & Local Government",PINS,10/02/2022,Specialist Technical Support,Digital Services,HAYS SPECIALIST RECRUITMENT LTD,,Large,,5106279817,ODT Apps Product Manager,NW1 2AF,"1,674.19",
"Housing, Communities & Local Government",PINS,10/02/2022,NSI Fees & Expenses,Inspectors Costs,GDPR REDACTION,,Micro,,5106279823,NSI Fees & Expenses,NP44 6JD,"2,603.35",
"Housing, Communities & Local Government",PINS,10/02/2022,Office machinery consumables,LKD Finance and Commercial,X M A LIMITED,,Data Not Provided,,5106279808,IT consumables 2021-2022,NG11 7EP,"2,922.48",
"Housing, Communities & Local Government",PINS,10/02/2022,Specialist Technical Support,Digital Services,HAYS SPECIALIST RECRUITMENT LTD,,Large,,5106279801,Data Migration BA,NW1 2AF,"3,271.86",
"Housing, Communities & Local Government",PINS,10/02/2022,Specialist Technical Support,Digital Services,HAYS SPECIALIST RECRUITMENT LTD,,Large,,5106279800,Data Engineer,NW1 2AF,"3,585.42",
"Housing, Communities & Local Government",PINS,10/02/2022,Specialist Technical Support,Digital Services,HAYS SPECIALIST RECRUITMENT LTD,,Large,,5106279799,Information Security Architect,NW1 2AF,"5,389.02",
"Housing, Communities & Local Government",PINS,10/02/2022,Specialist Technical Support,Change Portfolio Workstreams,SANDERSON GOVERNMENT & DEFENCE,,Large,,5106279824,Data Architect ,BS8 2QX,"13,423.50",
"Housing, Communities & Local Government",PINS,10/02/2022,Courier Services,Environmental Services (EIA),CABINET OFFICE,,Public Bodies,,5106279836,Mailshot Services,FY5 3TA,"15,728.22",
"Housing, Communities & Local Government",PINS,10/02/2022,DEV Exp (AUC) Intngble Software Acq Cost,Digital Services,DIFRENT LTD,,Medium,,5106279818,Applications Service - Beta Phase 1a/1b,E1 6JE,"64,550.00",
"Housing, Communities & Local Government",PINS,10/02/2022,DEV Exp (AUC) Intngble Software Acq Cost,Digital Services,DIFRENT LTD,,Medium,,5106279831,Appeals Beta,E1 6JE,"99,725.00",
"Housing, Communities & Local Government",PINS,11/02/2022,Training,Human Resources,Suzy Lamplugh Trust,,Small,,5106279886,Lone Working Training sessions,SE11 5RR,632.50,
"Housing, Communities & Local Government",PINS,11/02/2022,Agency Staff,Human Resources,HAYS SPECIALIST RECRUITMENT LTD,,Large,,5106279872,HR Ops Admin Officer,NW1 2AF,719.71,
"Housing, Communities & Local Government",PINS,11/02/2022,Agency Staff,Operations Group 1,HAYS SPECIALIST RECRUITMENT LTD,,Large,,5106276810,Agency Support Staff,NW1 2AF,720.00,
"Housing, Communities & Local Government",PINS,11/02/2022,Agency Staff,Operations Group 1,HAYS SPECIALIST RECRUITMENT LTD,,Large,,5106279851,Agency Support Staff,NW1 2AF,720.00,
"Housing, Communities & Local Government",PINS,11/02/2022,Agency Staff,Operations Group 2,HAYS SPECIALIST RECRUITMENT LTD,,Large,,5106279879,Casework Officer ,NW1 2AF,720.00,
"Housing, Communities & Local Government",PINS,11/02/2022,Agency Staff,Resourcing & Process,HAYS SPECIALIST RECRUITMENT LTD,,Large,,5106279852,Agency Support Staff,NW1 2AF,720.00,
"Housing, Communities & Local Government",PINS,11/02/2022,Specialist Technical Support,Digital Services,HAYS SPECIALIST RECRUITMENT LTD,,Large,,5106279869,Apps Ops Engineer ,NW1 2AF,"1,104.86",
"Housing, Communities & Local Government",PINS,11/02/2022,Specialist Technical Support,Digital Services,HAYS SPECIALIST RECRUITMENT LTD,,Large,,5106279875,Apps Ops Engineer ,NW1 2AF,"1,104.86",
"Housing, Communities & Local Government",PINS,11/02/2022,Specialist Technical Support,Digital Services,HAYS SPECIALIST RECRUITMENT LTD,,Large,,5106276809,O365 specialist ,NW1 2AF,"3,121.86",
"Housing, Communities & Local Government",PINS,11/02/2022,Agency Staff,Digital Services,HAYS SPECIALIST RECRUITMENT LTD,,Large,,5106276808,Supplier & Contracts Manager ,NW1 2AF,"3,541.26",
"Housing, Communities & Local Government",PINS,11/02/2022,NSI Fees & Expenses,Inspectors Costs,GDPR REDACTION,,Data Not Provided,,5106279893,NSI Fees & Expenses,SO22 6RT,"3,560.88",
"Housing, Communities & Local Government",PINS,11/02/2022,Specialist Technical Support,Change Portfolio Workstreams,HAYS SPECIALIST RECRUITMENT LTD,,Large,,5106279882,Specialist Resources,NW1 2AF,"3,621.06",
"Housing, Communities & Local Government",PINS,11/02/2022,NSI Fees & Expenses,Inspectors Costs,ERIMAX LTD,,Data Not Provided,,5106279885,NSI Fees & Expenses,WA15 9LH,"6,905.70",
"Housing, Communities & Local Government",PINS,14/02/2022,Physical Storage,LKD Finance and Commercial,RESTORE PLC,,Large,,5106279986,Offsite Storage 2021-2022,RH1 5DY,783.80,
"Housing, Communities & Local Government",PINS,14/02/2022,Recruitment/Procurement Advertising,Project Speed,REDACTIVE PUBLISHING LTD,,Medium,,5106279903,Recruitment Services,EC1M 5TP,852.00,
"Housing, Communities & Local Government",PINS,14/02/2022,Office Supplies,"Finance, Commercial & Business Support",BANNER BUSINESS SUPPLIES LTD,,Large,,5106279989,Paper 2021-2022,S9 1XU,"1,555.92",
"Housing, Communities & Local Government",PINS,14/02/2022,Agency Staff,Director of Strategy,REED SPECIALIST RECRUITMENT LTD,,Large,,5106279718,PA Role ,SW20 0BA,"1,635.70",
"Housing, Communities & Local Government",PINS,14/02/2022,NSI Fees & Expenses,Inspectors Costs,GDPR REDACTION,,Small,,5106279968,NSI Fees & Expenses,RG24 8SA,"1,829.45",
"Housing, Communities & Local Government",PINS,15/02/2022,Agency Staff,"Finance, Commercial & Business Support",REED SPECIALIST RECRUITMENT LTD,,Large,,5106280004,AA Storekeeper ,SW20 0BA,549.23,
"Housing, Communities & Local Government",PINS,15/02/2022,Agency Staff,"Finance, Commercial & Business Support",REED SPECIALIST RECRUITMENT LTD,,Large,,5106280003,Commercial EO ,SW20 0BA,712.44,
"Housing, Communities & Local Government",PINS,15/02/2022,Agency Staff,Director of Strategy,REED SPECIALIST RECRUITMENT LTD,,Large,,5106280016,PA Role ,SW20 0BA,"1,635.70",
"Housing, Communities & Local Government",PINS,15/02/2022,NSI Fees & Expenses,Inspectors Costs,GDPR REDACTION,,Data Not Provided,,5106280038,NSI Fees & Expenses,DE23 8DP,"2,411.45",
"Housing, Communities & Local Government",PINS,15/02/2022,Specialist Technical Support,Change Portfolio Workstreams,HAYS SPECIALIST RECRUITMENT LTD,,Large,,5106280000,Business Analyst,NW1 2AF,"3,085.08",
"Housing, Communities & Local Government",PINS,15/02/2022,NSI Fees & Expenses,Inspectors Costs,GDPR REDACTION,,Micro,,5106280036,NSI Fees & Expenses,BH15 1HH,"3,176.93",
"Housing, Communities & Local Government",PINS,15/02/2022,Specialist Technical Support,Change Portfolio Workstreams,METHODS BUSINESS AND DIGITAL TECH,,Medium,,5106280024,Specialist Resources,EC1N 8TS,"13,200.00",
"Housing, Communities & Local Government",PINS,15/02/2022,Legal Fees,Innovation & Improvement,MHCLG,,Public Bodies,,5106280027,Legal,HP2 4XN,"148,212.00",
"Housing, Communities & Local Government",PINS,16/02/2022,Agency Staff,"Finance, Commercial & Business Support",REED SPECIALIST RECRUITMENT LTD,,Large,,5106280013,Agency Support Staff,SW20 0BA,636.30,
"Housing, Communities & Local Government",PINS,16/02/2022,Agency Staff,"Finance, Commercial & Business Support",REED SPECIALIST RECRUITMENT LTD,,Large,,5106280021,Agency Support Staff,SW20 0BA,636.30,
"Housing, Communities & Local Government",PINS,16/02/2022,Agency Staff,Human Resources,REED SPECIALIST RECRUITMENT LTD,,Large,,5106280020,HR Ops Team Leader,SW20 0BA,676.08,
"Housing, Communities & Local Government",PINS,16/02/2022,Specialist Technical Support,CP Balance,HAYS SPECIALIST RECRUITMENT LTD,,Large,,5106280058,Project Communications ,NW1 2AF,784.99,
"Housing, Communities & Local Government",PINS,16/02/2022,NSI Fees & Expenses,Inspectors Costs,GDPR REDACTION,,Micro,,5106280073,NSI Fees & Expenses,CM3 1HZ,"1,330.90",
"Housing, Communities & Local Government",PINS,16/02/2022,Specialist Technical Support,Operations Group 2,HAYS SPECIALIST RECRUITMENT LTD,,Large,,5106280057,Virtual Events Technical Support,NW1 2AF,"1,498.86",
"Housing, Communities & Local Government",PINS,16/02/2022,Agency Staff,Human Resources,REED SPECIALIST RECRUITMENT LTD,,Large,,5106280011,HR Ops Team Leader,SW20 0BA,"1,718.93",
"Housing, Communities & Local Government",PINS,16/02/2022,Specialist Technical Support,Digital Services,HAYS SPECIALIST RECRUITMENT LTD,,Large,,5106280055,Digital Trainer,NW1 2AF,"1,798.14",
"Housing, Communities & Local Government",PINS,16/02/2022,NSI Fees & Expenses,Inspectors Costs,GDPR REDACTION,,Data Not Provided,,5106280070,NSI Fees & Expenses,LU7 2RQ,"1,950.90",
"Housing, Communities & Local Government",PINS,16/02/2022,Specialist Technical Support,Planning Reform,HAYS SPECIALIST RECRUITMENT LTD,,Large,,5106280053,Technical Business Analyst,NW1 2AF,"2,377.49",
"Housing, Communities & Local Government",PINS,16/02/2022,Agency Staff,"Finance, Commercial & Business Support",HAYS SPECIALIST RECRUITMENT LTD,,Large,,5106280002,Agency Support Staff,NW1 2AF,"2,399.40",
"Housing, Communities & Local Government",PINS,16/02/2022,Specialist Technical Support,Digital Services,HAYS SPECIALIST RECRUITMENT LTD,,Large,,5106280054,Interaction Designer,NW1 2AF,"2,988.34",
"Housing, Communities & Local Government",PINS,16/02/2022,Specialist Technical Support,Digital Services,HAYS SPECIALIST RECRUITMENT LTD,,Large,,5106280059,Data Migration BA,NW1 2AF,"3,271.86",
"Housing, Communities & Local Government",PINS,16/02/2022,Agency Staff,Digital Services,HAYS SPECIALIST RECRUITMENT LTD,,Large,,5106280052,Supplier & Contracts Manager ,NW1 2AF,"3,541.26",
"Housing, Communities & Local Government",PINS,16/02/2022,Specialist Technical Support,Digital Services,HAYS SPECIALIST RECRUITMENT LTD,,Large,,5106280060,Interaction Designer,NW1 2AF,"3,735.42",
"Housing, Communities & Local Government",PINS,16/02/2022,Specialist Technical Support,Change Portfolio Workstreams,REED SPECIALIST RECRUITMENT LTD,,Large,,5106280006,SAP Data Engineer,SW20 0BA,"3,795.00",
"Housing, Communities & Local Government",PINS,16/02/2022,Specialist Technical Support,Digital Services,HAYS SPECIALIST RECRUITMENT LTD,,Large,,5106280051,Information Security Architect,NW1 2AF,"5,389.02",
"Housing, Communities & Local Government",PINS,16/02/2022,Specialist Technical Support,Data and Performance,Kin and Carta Create Europe Limited,,Not assigned,,5106280071,Cloud Design for Operation Data Warehse,N1 9BE,"8,456.67",
"Housing, Communities & Local Government",PINS,17/02/2022,Office machinery consumables,LKD Finance and Commercial,X M A LIMITED,,Data Not Provided,,5106280109,IT consumables 2021-2022,NG11 7EP,376.32,
"Housing, Communities & Local Government",PINS,17/02/2022,Specialist Technical Support,Communications,GDPR REDACTION,,Micro,,5106280093,Video Production Services ,BS5 7DG,"1,375.00",
"Housing, Communities & Local Government",PINS,17/02/2022,Recruitment/Procurement Advertising,Project Speed,HAYMARKET MEDIA GROUP LIMITED,,Data Not Provided,,5106280079,Recruitment Services,TW1 3SP,"1,752.00",
"Housing, Communities & Local Government",PINS,17/02/2022,Specialist Technical Support,Digital Services,REED SPECIALIST RECRUITMENT LTD,,Large,,5106280018,Information Security Manager,SW20 0BA,"2,079.00",
"Housing, Communities & Local Government",PINS,17/02/2022,Specialist Technical Support,Digital Services,REED SPECIALIST RECRUITMENT LTD,,Large,,5106280010,PowerBI Engineer,SW20 0BA,"2,786.40",
"Housing, Communities & Local Government",PINS,17/02/2022,Specialist Technical Support,Digital Services,REED SPECIALIST RECRUITMENT LTD,,Large,,5106280017,PowerBI Engineer,SW20 0BA,"2,786.40",
"Housing, Communities & Local Government",PINS,17/02/2022,Specialist Technical Support,"Finance, Commercial & Business Support",HAYS SPECIALIST RECRUITMENT LTD,,Large,,5106280088,Commercial Lead,NW1 2AF,"3,120.00",
"Housing, Communities & Local Government",PINS,17/02/2022,Specialist Technical Support,Digital Services,REED SPECIALIST RECRUITMENT LTD,,Large,,5106280019,Full Stack Software Developer,SW20 0BA,"3,386.40",
"Housing, Communities & Local Government",PINS,17/02/2022,Advertising,Operations Group 2,TMP (UK) LIMITED,,Large,,5106280092,Statutory Advertising,W1T 7RQ,"3,787.73",
"Housing, Communities & Local Government",PINS,17/02/2022,IT - Software Maintenance,Digital Services,AIIMI LTD,,Medium,,5106279956,Horizon Front End Development,MK9 1JL,"30,600.00",
"Housing, Communities & Local Government",PINS,18/02/2022,Advertising,Operations Group 2,TMP (UK) LIMITED,,Large,,5106280144,Statutory Advertising,W1T 7RQ,587.87,
"Housing, Communities & Local Government",PINS,18/02/2022,Agency Staff,Operations Group 1,REED SPECIALIST RECRUITMENT LTD,,Large,,5106280014,Agency Support Staff,SW20 0BA,626.48,
"Housing, Communities & Local Government",PINS,18/02/2022,Agency Staff,Operations Group 1,REED SPECIALIST RECRUITMENT LTD,,Large,,5106280015,Agency Support Staff,SW20 0BA,660.35,
"Housing, Communities & Local Government",PINS,18/02/2022,Agency Staff,Operations Group 2,HAYS SPECIALIST RECRUITMENT LTD,,Large,,5106280123,Casework Officer ,NW1 2AF,720.00,
"Housing, Communities & Local Government",PINS,18/02/2022,Agency Staff,Operations Group 1,HAYS SPECIALIST RECRUITMENT LTD,,Large,,5106280125,Agency Support Staff,NW1 2AF,720.00,
"Housing, Communities & Local Government",PINS,18/02/2022,Agency Staff,Operations Group 1,HAYS SPECIALIST RECRUITMENT LTD,,Large,,5106280126,Agency Support Staff,NW1 2AF,720.00,
"Housing, Communities & Local Government",PINS,18/02/2022,Agency Staff,Resourcing & Process,HAYS SPECIALIST RECRUITMENT LTD,,Large,,5106280119,Agency Support Staff,NW1 2AF,720.00,
"Housing, Communities & Local Government",PINS,18/02/2022,Agency Staff,Digital Services,REED SPECIALIST RECRUITMENT LTD,,Large,,5106280141,Contract Support Officer,SW20 0BA,847.60,
"Housing, Communities & Local Government",PINS,18/02/2022,Agency Staff,Human Resources,HAYS SPECIALIST RECRUITMENT LTD,,Large,,5106280124,HR Ops Admin Officer,NW1 2AF,899.64,
"Housing, Communities & Local Government",PINS,18/02/2022,Training,Human Resources,RECESS COLLEGE,,Micro,,5106280133,Participation fee & associated services,WC2B 5NH,"1,645.00",
"Housing, Communities & Local Government",PINS,18/02/2022,NSI Fees & Expenses,Inspectors Costs,GDPR REDACTION,,Data Not Provided,,5106280056,NSI Fees & Expenses,WR10 3HA,"2,210.19",
"Housing, Communities & Local Government",PINS,18/02/2022,Specialist Technical Support,Digital Services,HAYS SPECIALIST RECRUITMENT LTD,,Large,,5106280120,O365 specialist ,NW1 2AF,"3,121.86",
"Housing, Communities & Local Government",PINS,18/02/2022,Specialist Technical Support,Change Portfolio Workstreams,HAYS SPECIALIST RECRUITMENT LTD,,Large,,5106280122,Specialist Resources,NW1 2AF,"3,621.06",
"Housing, Communities & Local Government",PINS,18/02/2022,NSI Fees & Expenses,Inspectors Costs,GDPR REDACTION,,Small,,5106280138,NSI Fees & Expenses,TQ6 9RG,"3,841.73",
"Housing, Communities & Local Government",PINS,18/02/2022,NSI Fees & Expenses,Inspectors Costs,GDPR REDACTION,,Data Not Provided,,5106280145,NSI Fees & Expenses,BH14 8AL,"4,209.54",
"Housing, Communities & Local Government",PINS,18/02/2022,Specialist Technical Support,Data and Performance,Kin and Carta Create Europe Limited,,Not assigned,,5106280150,Cloud Design for Operation Data Warehse,N1 9BE,"10,148.00",
"Housing, Communities & Local Government",PINS,21/02/2022,Office Supplies,"Finance, Commercial & Business Support",BANNER BUSINESS SUPPLIES LTD,,Large,,5106280263,Paper 2021-2022,S9 1XU,388.98,
"Housing, Communities & Local Government",PINS,21/02/2022,Specialist Technical Support,Digital Services,HAYS SPECIALIST RECRUITMENT LTD,,Large,,5106280238,Apps Ops Engineer ,NW1 2AF,"1,381.08",
"Housing, Communities & Local Government",PINS,21/02/2022,Specialist Technical Support,Planning Reform,HAYS SPECIALIST RECRUITMENT LTD,,Large,,5106280239,Technical Business Analyst,NW1 2AF,"2,377.49",
"Housing, Communities & Local Government",PINS,21/02/2022,NSI Fees & Expenses,Inspectors Costs,GDPR REDACTION,,Micro,,5106280260,NSI Fees & Expenses,M32 8QU,"2,811.10",
"Housing, Communities & Local Government",PINS,21/02/2022,Specialist Technical Support,Change Portfolio Workstreams,HAYS SPECIALIST RECRUITMENT LTD,,Large,,5106280235,Business Analyst,NW1 2AF,"3,085.08",
"Housing, Communities & Local Government",PINS,22/02/2022,Specialist Technical Support,Data and Performance,Kin and Carta Create Europe Limited,,Not assigned,,5106280149,Cloud Design for Operation Data Warehse,N1 9BE,"-8,456.67",
"Housing, Communities & Local Government",PINS,22/02/2022,Agency Staff,"Finance, Commercial & Business Support",REED SPECIALIST RECRUITMENT LTD,,Large,,5106280310,AA Storekeeper ,SW20 0BA,549.23,
"Housing, Communities & Local Government",PINS,22/02/2022,Agency Staff,"Finance, Commercial & Business Support",REED SPECIALIST RECRUITMENT LTD,,Large,,5106280286,Agency Support Staff,SW20 0BA,625.30,
"Housing, Communities & Local Government",PINS,22/02/2022,Agency Staff,Operations Group 1,REED SPECIALIST RECRUITMENT LTD,,Large,,5106280280,Agency Support Staff,SW20 0BA,664.58,
"Housing, Communities & Local Government",PINS,22/02/2022,Agency Staff,Human Resources,REED SPECIALIST RECRUITMENT LTD,,Large,,5106280283,HR Ops Team Leader,SW20 0BA,871.46,
"Housing, Communities & Local Government",PINS,22/02/2022,NSI Fees & Expenses,LKD NSI,GDPR REDACTION,,Data Not Provided,,5106280313,NSI Fees & Expenses,RG40 5YR,"1,452.65",
"Housing, Communities & Local Government",PINS,22/02/2022,Agency Staff,Human Resources,REED SPECIALIST RECRUITMENT LTD,,Large,,5106280285,HR Ops Team Leader,SW20 0BA,"1,490.40",
"Housing, Communities & Local Government",PINS,22/02/2022,Agency Staff,Director of Strategy,REED SPECIALIST RECRUITMENT LTD,,Large,,5106280288,PA Role ,SW20 0BA,"1,635.70",
"Housing, Communities & Local Government",PINS,22/02/2022,Agency Staff,"Finance, Commercial & Business Support",HAYS SPECIALIST RECRUITMENT LTD,,Large,,5106280240,Agency Support Staff,NW1 2AF,"1,919.52",
"Housing, Communities & Local Government",PINS,22/02/2022,NSI Fees & Expenses,LKD NSI,GDPR REDACTION,,Data Not Provided,,5106280284,NSI Fees & Expenses,CV21 3JN,"2,001.65",
"Housing, Communities & Local Government",PINS,22/02/2022,NSI Fees & Expenses,Inspectors Costs,GDPR REDACTION,,Micro,,5106280295,NSI Fees & Expenses,BB4 8TB,"2,721.38",
"Housing, Communities & Local Government",PINS,22/02/2022,NSI Fees & Expenses,Inspectors Costs,GDPR REDACTION,,Micro,,5106280324,NSI Fees & Expenses,CH7 5NL,"2,940.00",
"Housing, Communities & Local Government",PINS,22/02/2022,Specialist Technical Support,Digital Services,REED SPECIALIST RECRUITMENT LTD,,Large,,5106280287,Full Stack Software Developer,SW20 0BA,"3,386.40",
"Housing, Communities & Local Government",PINS,22/02/2022,Specialist Technical Support,Digital Services,HAYS SPECIALIST RECRUITMENT LTD,,Large,,5106280236,Data Engineer,NW1 2AF,"3,585.42",
"Housing, Communities & Local Government",PINS,22/02/2022,Specialist Technical Support,Change Portfolio Workstreams,REED SPECIALIST RECRUITMENT LTD,,Large,,5106280279,SAP Data Engineer,SW20 0BA,"3,795.00",
"Housing, Communities & Local Government",PINS,22/02/2022,Specialist Technical Support,Digital Services,Kin and Carta Create Europe Limited,,Not assigned,,5106280130,DevOps Discovery,N1 9BE,"18,624.00",
"Housing, Communities & Local Government",PINS,23/02/2022,NSI Fees & Expenses,Inspectors Costs,GDPR REDACTION,,Micro,,5106280340,NSI Fees & Expenses,TF9 4BL,"1,375.12",
"Housing, Communities & Local Government",PINS,23/02/2022,Specialist Technical Support,Digital Services,HAYS SPECIALIST RECRUITMENT LTD,,Large,,5106280331,Apps Ops Engineer ,NW1 2AF,"1,381.08",
"Housing, Communities & Local Government",PINS,23/02/2022,Specialist Technical Support,Operations Group 2,HAYS SPECIALIST RECRUITMENT LTD,,Large,,5106280333,Virtual Events Technical Support,NW1 2AF,"1,498.86",
"Housing, Communities & Local Government",PINS,23/02/2022,Specialist Technical Support,Digital Services,HAYS SPECIALIST RECRUITMENT LTD,,Large,,5106280335,Digital Trainer,NW1 2AF,"1,798.14",
"Housing, Communities & Local Government",PINS,23/02/2022,NSI Fees & Expenses,Inspectors Costs,ARGYLE PLANNING CONSULTANCY LTD,,Data Not Provided,,5106280341,NSI Fees & Expenses,NE66 1UW,"2,945.85",
"Housing, Communities & Local Government",PINS,23/02/2022,Specialist Technical Support,"Finance, Commercial & Business Support",HAYS SPECIALIST RECRUITMENT LTD,,Large,,5106280332,Commercial Lead,NW1 2AF,"3,120.00",
"Housing, Communities & Local Government",PINS,23/02/2022,NSI Fees & Expenses,Inspectors Costs,ARGYLE PLANNING CONSULTANCY LTD,,Data Not Provided,,5106280351,NSI Fees & Expenses,NE66 1UW,"3,292.55",
"Housing, Communities & Local Government",PINS,23/02/2022,Agency Staff,Digital Services,HAYS SPECIALIST RECRUITMENT LTD,,Large,,5106280336,Supplier & Contracts Manager ,NW1 2AF,"3,541.26",
"Housing, Communities & Local Government",PINS,23/02/2022,Specialist Technical Support,Digital Services,HAYS SPECIALIST RECRUITMENT LTD,,Large,,5106280330,Interaction Designer,NW1 2AF,"3,735.42",
"Housing, Communities & Local Government",PINS,23/02/2022,Specialist Technical Support,Digital Services,HAYS SPECIALIST RECRUITMENT LTD,,Large,,5106280334,Information Security Architect,NW1 2AF,"5,389.02",
"Housing, Communities & Local Government",PINS,24/02/2022,NSI Fees & Expenses,Inspectors Costs,GDPR REDACTION,,Micro,,5106280374,NSI Fees & Expenses,CM3 1HZ,"1,443.20",
"Housing, Communities & Local Government",PINS,24/02/2022,NSI Fees & Expenses,Inspectors Costs,GDPR REDACTION,,Micro,,5106280372,NSI Fees & Expenses,M33 6RG,"3,271.14",
"Housing, Communities & Local Government",PINS,24/02/2022,Specialist Technical Support,Digital Services,HAYS SPECIALIST RECRUITMENT LTD,,Large,,5106280378,Data Migration BA,NW1 2AF,"3,271.86",
"Housing, Communities & Local Government",PINS,24/02/2022,NSI Fees & Expenses,Inspectors Costs,GDPR REDACTION,,Small,,5106280397,NSI Fees & Expenses,SR8 3NR,"6,525.84",
"Housing, Communities & Local Government",PINS,25/02/2022,Agency Staff,LKD Finance and Commercial,REED SPECIALIST RECRUITMENT LTD,,Large,,5106280524,Commercial EO ,SW20 0BA,-712.44,
"Housing, Communities & Local Government",PINS,25/02/2022,Agency Staff,Operations Group 1,REED SPECIALIST RECRUITMENT LTD,,Large,,5106280281,Agency Support Staff,SW20 0BA,626.48,
"Housing, Communities & Local Government",PINS,25/02/2022,Agency Staff,"Finance, Commercial & Business Support",REED SPECIALIST RECRUITMENT LTD,,Large,,5106280526,Commercial EO ,SW20 0BA,712.44,
"Housing, Communities & Local Government",PINS,25/02/2022,Agency Staff,Operations Group 1,HAYS SPECIALIST RECRUITMENT LTD,,Large,,5106280406,Agency Support Staff,NW1 2AF,720.00,
"Housing, Communities & Local Government",PINS,25/02/2022,NSI Fees & Expenses,Inspectors Costs,GDPR REDACTION,,Micro,,5106280413,NSI Fees & Expenses,BA4 9DN,"2,239.50",
"Housing, Communities & Local Government",PINS,25/02/2022,Agency Staff,"Finance, Commercial & Business Support",HAYS SPECIALIST RECRUITMENT LTD,,Large,,5106280343,Agency Support Staff,NW1 2AF,"2,399.40",
"Housing, Communities & Local Government",PINS,25/02/2022,Specialist Technical Support,Planning Reform,HAYS SPECIALIST RECRUITMENT LTD,,Large,,5106280407,Technical Business Analyst,NW1 2AF,"2,674.68",
"Housing, Communities & Local Government",PINS,25/02/2022,Specialist Technical Support,Digital Services,HAYS SPECIALIST RECRUITMENT LTD,,Large,,5106280405,O365 specialist ,NW1 2AF,"3,121.86",
"Housing, Communities & Local Government",PINS,25/02/2022,Specialist Technical Support,Change Portfolio Workstreams,HAYS SPECIALIST RECRUITMENT LTD,,Large,,5106280409,Specialist Resources,NW1 2AF,"3,621.06",
"Housing, Communities & Local Government",PINS,28/02/2022,Payroll Services,Human Resources,CGI IT UK LIMITED,,Large,,5106280512,Payroll Service 2021/21,CF31 9AP,574.58,
"Housing, Communities & Local Government",PINS,28/02/2022,Agency Staff,Human Resources,HAYS SPECIALIST RECRUITMENT LTD,,Large,,5106280499,HR Ops Admin Officer,NW1 2AF,629.75,
"Housing, Communities & Local Government",PINS,28/02/2022,Advertising,Operations Group 2,TMP (UK) LIMITED,,Large,,5106280535,Statutory Advertising,W1T 7RQ,647.87,
"Housing, Communities & Local Government",PINS,28/02/2022,Agency Staff,"Finance, Commercial & Business Support",REED SPECIALIST RECRUITMENT LTD,,Large,,5106279710,Commercial EO ,SW20 0BA,712.44,
"Housing, Communities & Local Government",PINS,28/02/2022,Agency Staff,"Finance, Commercial & Business Support",REED SPECIALIST RECRUITMENT LTD,,Large,,5106280517,Commercial EO ,SW20 0BA,712.44,
"Housing, Communities & Local Government",PINS,28/02/2022,Agency Staff,Resourcing & Process,HAYS SPECIALIST RECRUITMENT LTD,,Large,,5106280411,Agency Support Staff,NW1 2AF,720.00,
"Housing, Communities & Local Government",PINS,28/02/2022,NSI Fees & Expenses,Inspectors Costs,ELDNAR LTD,,Micro,,5106280504,NSI Fees & Expenses,DY12 2FB,798.16,
"Housing, Communities & Local Government",PINS,28/02/2022,NSI Fees & Expenses,Inspectors Costs,GDPR REDACTION,,Micro,,5106280515,NSI Fees & Expenses,WR5 2AG,882.00,
"Housing, Communities & Local Government",PINS,28/02/2022,NSI Fees & Expenses,Inspectors Costs,GDPR REDACTION,,Data Not Provided,,5106280533,NSI Fees & Expenses,GL55 6QF,"2,229.60",
"Housing, Communities & Local Government",PINS,28/02/2022,NSI Fees & Expenses,Inspectors Costs,GDPR REDACTION,,Small,,5106280531,NSI Fees & Expenses,DN14 6JU,"2,612.84",
"Housing, Communities & Local Government",PINS,28/02/2022,NSI Fees & Expenses,Inspectors Costs,GDPR REDACTION,,Small,,5106280532,NSI Fees & Expenses,RG41 3HL,"3,786.00",
"Housing, Communities & Local Government",PINS,28/02/2022,Payroll Services,Human Resources,CGI IT UK LIMITED,,Large,,5106280513,Payroll Service 2021/21,CF31 9AP,"4,093.84",
"Housing, Communities & Local Government",PINS,28/02/2022,Legal Fees,Innovation & Improvement,GOVERNMENT LEGAL DEPT,,Public Bodies,,5106280494,Disbursements,WC2B 4TS,"9,976.47",
"Housing, Communities & Local Government",PINS,28/02/2022,Legal Fees,Innovation & Improvement,GOVERNMENT LEGAL DEPT,,Public Bodies,,5106280494,Fees & Charges,WC2B 4TS,"73,383.80",
